Cogmind - Beta 13 @@@ ROGUE MODE // 2024.03.13 @ 13:51:35 Player: Oldman Pu Result: Destroyed by G-34 Mercenary with Small Laser Performance ------------- Evolutions (1) 500 Regions Visited (3) 600 Robots Destroyed (55) 275 Value Destroyed (1369) 1369 Prototype IDs (5) 100 Alien Tech Used (0) 0 Bonus (0) 0 TOTAL SCORE: 2844 Bonus ------- None Cogmind --------- Core Integrity 0/400 Matter 290/300 Energy 280/280 System Corruption 0% Temperature Cool (6) Movement Rolling (115) Ox1 Location -9/Materials Parts ------- > --- POWER (1) -------- Heavy Ion Engine > --- PROPULSION (2) --- Compact Wheel Compact Wheel > --- UTILITY (4) ------ Improved Heat Sink High-capacity Storage Unit Experimental Sensor Array Core Shielding > --- WEAPON (2) ------- Advanced Beam Cannon Enhanced Autogun > --- INVENTORY (20) --- Heavy Ion Engine Light Nuclear Core Light Nuclear Core Wheel Compact Wheel Armored Wheel Heat Sink Heat Sink Large Storage Unit Shield Generator Field Laser Field Laser Particle Cannon Advanced Beam Cannon Advanced Beam Cannon Advanced Beam Cannon Heavy Assault Rifle Enhanced Autogun Enhanced Autogun Enhanced Autogun Peak State ------------ > --- POWER ------------ Light Nuclear Core > --- PROPULSION ------- Compact Wheel Armored Wheel > --- UTILITY ---------- Improved Heat Sink High-capacity Storage Unit Experimental Sensor Array Shield Generator > --- WEAPON ----------- Advanced Beam Cannon Enhanced Autogun > --- INVENTORY -------- Light Ion Engine Light Ion Engine Wheel Compact Wheel Compact Wheel Compact Wheel Heat Sink Heat Sink Large Storage Unit Field Laser Field Laser Particle Cannon Advanced Beam Cannon Advanced Beam Cannon Advanced Beam Cannon Heavy Assault Rifle Enhanced Autogun Enhanced Autogun Enhanced Autogun [Rating: 32] Favorites ----------- Power Ion Engine Engine Ion Engine Power Core Light Nuclear Core Propulsion Compact Wheel Wheel Compact Wheel Utility Heat Sink Device Heat Sink Storage High-capacity Storage Unit Protection Light Armor Plating Weapon Particle Cannon Energy Gun Particle Gun Energy Cannon Particle Cannon Ballistic Gun Enhanced Autogun Build | -11 -10 -10 -9 ------- Run | Yrd Mat Min Mat Slots Evolved 2 | . . . 2 Power . | . . . . Propulsion . | . . . . Utility 2 | . . . 2 Weapon . | . . . . Parts Attached 48 | 6 11 . 31 Power 9 | 1 3 . 5 Engine 7 | 1 3 . 3 Core 2 | . . . 2 Reactor . | . . . . Propulsion 10 | 2 1 . 7 Treads . | . . . . Leg . | . . . . Wheel 10 | 2 1 . 7 Hover . | . . . . Flight . | . . . . Utility 20 | 1 5 . 14 Device 7 | . 1 . 6 Storage 9 | 1 4 . 4 Processor . | . . . . Hackware . | . . . . Protection 4 | . . . 4 Artifact . | . . . . Weapon 9 | 2 2 . 5 Energy Gun 3 | 1 1 . 1 Energy Cannon 2 | . 1 . 1 Ballistic Gun 4 | 1 . . 3 Ballistic Cannon . | . . . . Launcher . | . . . . Special Weapon . | . . . . Impact Weapon . | . . . . Slashing Weapon . | . . . . Piercing Weapon . | . . . . Special Melee Weapon . | . . . . Unidentified Prototypes 5 | . . . 5 Parts Lost 10 | . 1 . 9 Power 1 | . . . 1 Propulsion 4 | . 1 . 3 Utility 4 | . . . 4 Weapon 1 | . . . 1 Highest Loss Streak 6 | . 1 . 6 To Critical Strikes . | . . . . Average Slot Usage (%) 96 | . 95 100 94 Engine 12 | . 14 14 9 Wheel 25 | . 27 28 20 Device 16 | . 10 14 25 Storage 13 | . 14 14 12 Energy Gun 10 | . 14 14 2 Energy Cannon 11 | . 10 14 10 Ballistic Gun 3 | . 3 . 7 Naked Turns . | . . . . Heaviest Build 59 | 14 53 53 59 Greatest Support 32 | 26 26 26 32 Greatest Overweight (x) 4 | 2 3 2 4 Average Overweight (x) 1 | . 1 2 1 Largest Inventory Capacity 20 | 8 20 20 20 Average Capacity 18 | 7 15 20 19 Most Carried 20 | 1 16 18 20 Average Carried 15 | . 9 17 17 Final Capacity 20 | 8 20 20 20 Final Carried 20 | 1 16 18 20 Class Distribution -------------------- 62% | Scavenger-Mutant 37% | Mutant Dominant Class ---------------- Mutant | -10/Materials Scavenger-Mutant | -10/Mines Mutant | -9/Materials Resources | -11 -10 -10 -9 ----------- Run | Yrd Mat Min Mat Matter Collected 883 | 138 301 . 444 Remotely . | . . . . Salvage Created 2335 | . 888 . 1447 Parts 120 | . 55 . 65 Haulers Intercepted 4 | . 2 . 2 Recyclers Shooed 3 | . 1 . 2 Parts Field Recycled . | . . . . Retrieved Matter . | . . . . Parts Self-Destructed . | . . . . Prevented . | . . . . Kills | -11 -10 -10 -9 ------- Run | Yrd Mat Min Mat Combat Hostiles Destroyed 36 | . 15 . 21 Guns 18 | . 7 . 11 Cannons 15 | . 7 . 8 Classes Destroyed 8 | . 5 . 3 Worker 2 | . . . 2 Hauler 4 | . 2 . 2 Recycler 7 | . 3 . 4 Watcher 6 | . 3 . 3 Swarmer 6 | . 6 . . Grunt 26 | . 9 . 17 Duelist 1 | . . . 1 Sentry 3 | . . . 3 Best Kill Streak 5 | . 4 . 5 Combat Bots Only 4 | . 3 . 4 Max Kills in Single Turn 1 | . 1 . 1 Gunslinging . | . . . . Exploded . | . . . . Melee . | . . . . Uniques/NPCs Destroyed . | . . . . Combat | -11 -10 -10 -9 -------- Run | Yrd Mat Min Mat Hostile Shots Fired 153 | . 54 . 99 Missed 29 | . 9 . 20 Damage Taken 1638 | . 421 . 1217 Core 556 | . 151 . 405 Absorbed by Shields 44 | . . . 44 Redirected to Shielding 2 | . . . 2 Regen/Repaired (Parts) 587 | . 243 . 344 Core Remaining (%) 69 | 100 . 39 . Volleys Fired 149 | . 61 . 88 Largest 2 | . 2 . 2 Hottest 133 | . 133 . 133 Shots Fired 292 | . 117 . 175 Gun 166 | . 79 . 87 Cannon 126 | . 38 . 88 Launcher . | . . . . Special . | . . . . Kinetic 73 | . 23 . 50 Thermal 219 | . 94 . 125 Explosive . | . . . . Electromagnetic . | . . . . Robot Hit Streak 13 | . 8 . 13 Robot Miss Streak 5 | . 5 . 3 Penetration Max . | . . . . Secondary Targets . | . . . . Shots Hit Robots 185 | . 65 . 120 Core Hits 71 | . 30 . 41 Critical Kills 1 | . . . 1 Critical Parts Destroyed . | . . . . Critical Strikes 6 | . 2 . 4 Burn 5 | . 2 . 3 Meltdown 1 | . . . 1 Melee Attacks . | . . . . Impact . | . . . . Slashing . | . . . . Piercing . | . . . . Sneak Attacks . | . . . . Combat Hostiles . | . . . . Follow-up Attacks . | . . . . Damage Inflicted 3222 | . 982 . 2240 Guns 1634 | . 629 . 1005 Cannons 1585 | . 353 . 1232 Explosions . | . . . . Melee . | . . . . Ramming 3 | . . . 3 Kinetic 690 | . 196 . 494 Thermal 2529 | . 786 . 1743 Explosive . | . . . . Electromagnetic . | . . . . Impact . | . . . . Slashing . | . . . . Piercing . | . . . . Highest Corruption . | . . . . Average Corruption . | . . . . Corruption Purged . | . . . . Corruption Blocked . | . . . . Overload Shots . | . . . . Overflow Damage 13 | . . . 13 Projectiles 13 | . . . 13 Explosions . | . . . . Melee . | . . . . Knockbacks . | . . . . Impact . | . . . . Kinetic . | . . . . Secondary . | . . . . Self-Inflicted Damage 1 | . . . 1 Shots . | . . . . Rammed 1 | . . . 1 Targets Rammed 1 | . . . 1 Kicked . | . . . . Crushed . | . . . . Highest Temperature 705 | . 168 . 705 Average Temperature 115 | . 54 . 169 Received Heat Transfer 712 | . 105 . 607 Effects 14 | . . . 14 Shutdowns 2 | . . . 2 Energy Bleed 3 | . . . 3 Interference 1 | . . . 1 Short Circuit 1 | . . . 1 Damage (minor) 3 | . . . 3 Damage (core) 4 | . . . 4 Siege Activations . | . . . . Robots Corrupted . | . . . . Combat Hostiles . | . . . . Parts Fried . | . . . . Impact Corruptions . | . . . . Robots Melted 3 | . 1 . 2 Combat Hostiles 3 | . 1 . 2 Parts Melted 13 | . 5 . 8 Heat Transferred 5624 | . 1961 . 3663 Parts Sabotaged . | . . . . Parts Stolen . | . . . . Parts Stripped . | . . . . Power Chain Reactions . | . . . . Alert | -11 -10 -10 -9 ------- Run | Yrd Mat Min Mat Peak Influence 269 | . 269 10 254 Initial 10 | . . 10 . Average 72 | . 131 3 88 Maximum Alert Level 1 | . 1 . 1 Low Security (%) 93 | 100 85 100 94 Level 1 6 | . 14 . 5 Level 2 . | . . . . Level 3 . | . . . . Level 4 . | . . . . Level 5 . | . . . . High Security . | . . . . Max Security . | . . . . Squads Dispatched 5 | . 3 . 2 Investigation 2 | . 2 . . Extermination . | . . . . Reinforcement 3 | . 1 . 2 Assault . | . . . . Garrison . | . . . . Intercept . | . . . . Searches Triggered . | . . . . Construction Impeded . | . . . . Haulers Reinforced . | . . . . Active Scanning Responses . | . . . . Cargo Convoy Interrupts . | . . . . Stealth | -11 -10 -10 -9 --------- Run | Yrd Mat Min Mat Distress Signals 4 | . 2 . 2 Communications Jammed . | . . . . Distress Signals . | . . . . Times Spotted 55 | . 22 . 33 Peak Tracking Total 5 | . 3 . 5 Tactical Retreats 2 | . 1 . 1 Traps | -11 -10 -10 -9 ------- Run | Yrd Mat Min Mat Traps Triggered . | . . . . Indirectly . | . . . . Trap Hack Attempts . | . . . . Triggered . | . . . . Disarmed . | . . . . Reprogrammed . | . . . . Reused . | . . . . Traps Extracted . | . . . . Installed . | . . . . Triggered . | . . . . Machines | -11 -10 -10 -9 ---------- Run | Yrd Mat Min Mat Machines Disabled 3 | . 3 . . Max in Single Turn 1 | . 1 . . Machines Repaired . | . . . . Machines Dismantled . | . . . . Machines Sabotaged . | . . . . Overloaded Fab Kills . | . . . . Hacking | -11 -10 -10 -9 --------- Run | Yrd Mat Min Mat Machines Accessed 12 | . 9 . 3 Terminals 8 | . 6 . 2 Fabricators . | . . . . Repair Stations 2 | . 1 . 1 Recycling Units 2 | . 2 . . Scanalyzers . | . . . . Garrison Access . | . . . . Total Hacks 28 | . 20 . 8 Successful 14 | . 10 . 4 Failed 14 | . 10 . 4 Catastrophic 2 | . 1 . 1 Database Lockouts . | . . . . Manual . | . . . . Terminals 18 | . 13 . 5 Fabricators . | . . . . Repair Stations 6 | . 3 . 3 Recycling Units 4 | . 4 . . Scanalyzers . | . . . . Garrison Access . | . . . . Terminal Hacks 7 | . 5 . 2 Emergency Access Points 1 | . . . 1 Locate Traps 3 | . 3 . . Hauler Manifests 1 | . 1 . . Zone Layout 2 | . 1 . 1 Fabricator Hacks . | . . . . Repair Station Hacks 4 | . 2 . 2 Scan Component 2 | . 1 . 1 Repair 2 | . 1 . 1 Recycling Unit Hacks 3 | . 3 . . Report Inventory 2 | . 2 . . Retrieve Components 1 | . 1 . . Scanalyzer . | . . . . Garrison Access Hacks . | . . . . Unauthorized Hacks . | . . . . Terminals . | . . . . Fabricators . | . . . . Repair Stations . | . . . . Recycling Units . | . . . . Scanalyzers . | . . . . Garrison Access . | . . . . Data Cores Recovered . | . . . . Used . | . . . . Hacking Detections 9 | . 6 . 3 Full Trace Events 3 | . 3 . . Feedback Events . | . . . . Feedback Blocked . | . . . . Robot Schematics Acquired . | . . . . Robots Built . | . . . . Authchips . | . . . . Time . | . . . . Total Robot Build Rating . | . . . . Part Schematics Acquired . | . . . . Parts Built . | . . . . Authchips . | . . . . Time . | . . . . Total Part Build Rating . | . . . . Parts Repaired 2 | . 1 . 1 Time 52 | . 26 . 26 Parts Recycled . | . . . . Recycled Matter . | . . . . Retrieved Matter . | . . . . Retrieved Components 3 | . 3 . . Parts Scanalyzed . | . . . . Part Schematics Acquired . | . . . . Parts Damaged . | . . . . Bothacking | -11 -10 -10 -9 ------------ Run | Yrd Mat Min Mat Used RIF Installer . | . . . . Robots Hacked . | . . . . Non-combat . | . . . . Combat . | . . . . Robot Hacks Applied . | . . . . Relay Couplers Released . | . . . . Fabnet Peak Effective % . | . . . . Robots Rewired . | . . . . Allies Hacked . | . . . . Hacks Repelled . | . . . . Allies | -11 -10 -10 -9 -------- Run | Yrd Mat Min Mat Total Allies . | . . . . Largest Group . | . . . . Highest-Rated Group . | . . . . Highest-Rated Ally . | . . . . Total Orders . | . . . . Ally Attacks . | . . . . Total Damage . | . . . . Kills . | . . . . Allies Corrupted . | . . . . Allies Melted . | . . . . Intel | -11 -10 -10 -9 ------- Run | Yrd Mat Min Mat Robot Analysis Total . | . . . . Derelict Logs Recovered 2 | . . 2 . Drone Launches . | . . . . Drone Recoveries . | . . . . Exploration | -11 -10 -10 -9 ------------- Run | Yrd Mat Min Mat Turns Passed 3892 | 39 1212 1276 1365 Spaces Moved 2305 | 34 822 712 737 Core 8 | 8 . . . Treads . | . . . . Legs . | . . . . Wheels 2297 | 26 822 712 737 Hover . | . . . . Flight . | . . . . Fastest Speed 50 | 50 90 120 110 Average Speed 115 | 86 108 120 119 Slowest Speed 150 | 150 125 120 150 Overloaded Moves . | . . . . Propulsion Burnouts . | . . . . Robots Hopped . | . . . . Cave-ins Triggered . | . . . . Exploration Rate (%) 65 | 3 97 100 60 Regions Visited 3 Branch Regions 1 Pre-discovered Areas 1 | . . 1 . Known Exits Taken . | . . . . Unknown Exits Taken 3 | 1 1 1 . Scrap Searched 1 | . . 1 . Spaces Dug . | . . . . Terrain Destroyed . | . . . . Melee . | . . . . Projectile . | . . . . AOE . | . . . . Terrain Rammed . | . . . . Walls Destroyed . | . . . . Machines Disabled . | . . . . Actions | -11 -10 -10 -9 --------- Run | Yrd Mat Min Mat Total 3257 | 40 1023 1133 1061 Wait 687 | . 110 420 157 Move 2302 | 33 821 711 737 Hop . | . . . . Pick Up 44 | 1 16 2 25 Fast Attach 9 | 6 . . 3 Attach 13 | . 2 . 11 Detach 1 | . . . 1 Swap 26 | . 9 . 17 Drop 25 | . 4 . 21 Fire 149 | . 61 . 88 Melee . | . . . . Ram 1 | . . . 1 Kick . | . . . . Crush . | . . . . Escape Stasis . | . . . . Rewire . | . . . . Trap . | . . . . Miscellaneous . | . . . . Route ------- -11/Scrapyard -10/Materials (discovered 4 exits: *Mat x3 / [*Min]) -10/Mines (discovered 2 exits: *Mat x2) -9/Materials (discovered 4 exits: [*Mat] / [*Min x2] / [*Sto]) History --------- Turn | Location | Event 20 | -11/Scrapyard | Discovered new exit (range 14) 40 | -11/Scrapyard | Entered Materials 312 | -10/Materials | Build established: Mutant 327 | -10/Materials | Discovered new exit (range 15) 445 | -10/Materials | Discovered new exit (range 11) 500 | -10/Materials | Discovered new exit (range 9) 678 | -10/Materials | Core integrity fell below 50% 838 | -10/Materials | Repaired Hcp. Storage Unit 966 | -10/Materials | Discovered new exit (range 16) 1030 | -10/Materials | Build established: Scavenger-Mutant 1252 | -10/Materials | Entered Mines 1253 | -10/Mines | Learned location of Storage (-9) 1285 | -10/Mines | Discovered new exit (range 3) 1305 | -10/Mines | Discovered new exit (range 4) 1310 | -10/Mines | Received a Rocket Launcher from a helpful Derelict 1345 | -10/Mines | Found a damaged Exp. Sensor Array with a note attached 1348 | -10/Mines | Found Prototype Device 1364 | -10/Mines | Learned 2 Materials zone layouts 1716 | -10/Mines | Learned Materials trap positions 2528 | -10/Mines | Entered Materials 2528 | -9/Materials | Evolved 2 slots: Utility x2 2530 | -9/Materials | Loaded intel: 19 trap records 2778 | -9/Materials | Discovered new exit (range 14) 2875 | -9/Materials | Core integrity fell below 50% 2890 | -9/Materials | Core integrity fell below 20% 2949 | -9/Materials | Lost 6 parts (1p1n3u1w) 3117 | -9/Materials | Discovered new exit (range 7) 3202 | -9/Materials | Identified Exp. Sensor Array 3224 | -9/Materials | Discovered new exit (range 11) 3426 | -9/Materials | Repaired Hcp. Storage Unit 3528 | -9/Materials | Build established: Mutant 3548 | -9/Materials | Discovered new exit (range 13) 3893 | -9/Materials | Destroyed by G-34 Mercenary with Small Laser Last Messages --------------- 03692_ Slammed into O-16 Technician. 03692_ Destabilizing: Core damaged (-12). 03694_ Acquired 2 matter. 03702_ Dropped Ion Engine. 03707_ Acquired Hvy. Ion Engine. 03742_ W-16 Scout sends out distress signal. 03748_ G-34 Mercenary destroyed. 03754_ Acquired 14 matter. 03764_ R-06 Scavenger collects Sml. Laser. 03779_ Destroyed Sensor Array. 03784_ Acquired 20 matter. 03827_ W-16 Scout sends out distress signal. 03828_ W-16 Scout destroyed. 03831_ G-34 Mercenary destroyed. 03872_ Arm. Wheel severed. 03874_ L-31 Rogue destroyed. 03876_ Dropped Com. Wheel. 03876_ Acquired Arm. Wheel. 03878_ Acquired 38 matter. 03883_ Acquired Core Shielding. Map ----- +----------------------------------------------------+ | | | | | ?????????????????????????????????????????????????? | | ?????????????????????????????????????????????????? | | ?????????????????????????????????????????????????? | | ?????????????????????????????????????????????????? | | ?????????????????????????????????################# | | ?????????????????????????????????#! | | ?????????????????????????????????#*= ### | | ??????????????????????????????####%== #?? | | ??????????????????????????????# ! * #?? | | ??????????????????????????????# ######+#######?? | | ??????????????????????????????# # #?????? | | ??????????????????????????????# + """ #?????? | | ??????????????????????????????# # """ #?????? | | ???????####+#########?????????# # ? """ #?????? | | ??????? ^^ #?????????# [#= #?????? | | ??????? ^ +?????????# =+% #?????? | | ???????? ? ^!! #?????????# =%#* "T" #?????? | | ????????## ^ ! #?????????# # """ #?????? | | ????????#T #?????????# # #?????? | | ?????????# "" #?????????# ###########????? | | ????????## "T ########### #???# #????? | | ????????#T "" !% #####=% #????? | | ?????????# t % k %[=< #????? | | ?????????# m = ! @ #####![ #????? | | ?????????# #####+###### #########???#* #????? | | ?????????# # % ## #???????????### ###????? | | ?????????# # ]= ## +?????????????# #??????? | | ########## # ## #?????????????# #??????? | | ? # ##g#?????????????# #??????# | | # ## #?????#######?# #??????# | | # ## #?????# ### ###????# | | ########### ## #?????# # #????# | | #?????????# #? ??????# # #????# | | #?????????## ""####+#? ??????# # #????# | | #??????????#S""#??# ?? ??????# ## ##????# | | ########???#"" #??# ?? ??????# ###+####???# | | ## #???#####??# ?? ??????# #] #???# | | *## #??????????# ?? ??????# # #???# | | !%## #??????????# ?? ??????# # #???# | | + #??????????# ?????????# # #???# | | ## #??????????# ?????????# # #???# | | =## #########??# ?????????#""" # #???# | | !%## ## #??##????????##"T"#+####+####### | | [## ## #????????????# ! % | | ## ## #????????????# | | ## ## #####????? + ! | | ## ## #""!"????????# ###+####### | | ## ## # "!"|"?????## "" #?# #?### | +----------------------------------------------------+ Best States ------------- Heat Dissipation 62 Energy Generation 14 Energy Capacity 400 Matter Stores 300 Matter Capacity 300 Sight Range 16 Robot Scan Range 20 Terrain Scan Density 10 Armor Coverage 300 Core Shielding 20 Evasion (%) 50 Item Schematics ----------------- None Robot Schematics ------------------ None Fabricated ------------ Nothing Alien Tech Used ----------------- None Achievements -------------- None Challenges ------------ None Game ------ Seed ChromaticThermicWheel Manual? 0 Play Time 00:38:28 Cumulative 154.5 hours Start 2024.03.13 @ 12:31:32 End 2024.03.13 @ 13:51:35 Sessions 1 Manual Loads 0 Difficulty Rogue Special Mode None Game No. 103 Rogue 91 Adventurer 12 Explorer 0 Win Type - Total 1 Types 1/0/0/0/0/0/0/0/0 Lore% 23 Gallery% 38 Achievement% 30 Wizard Run 0 Options --------- Layout 1 ASCII 0 Keyboard 0 Movement Mouse Keybinds 0 Fullscreen 1 Font 32/SmallcapsGlow Map View 77x35 Zoom Use 0% Tactical HUD 1 Map Filters NONE Filters NONE Steam 1 RUN: 40f5e3fe-a076-4527-b2db-1b3dbcaccfe1